bitfinex/quotes_ETHUSD_20240925
["timestamp","ask_amount","ask_price","bid_price","bid_amount"]
[1727242258916,0.79809624,2634.1,2633.8,0.92529182]
[1727242259292,0.79809624,2634.1,2633.8,0.84936478]
[1727242259700,0.79809624,2634.1,2633.8,4.64607478]
[1727242259916,0.79809624,2634.1,2633.9,0.84428948]
[1727242260627,0.79809624,2634.1,2633.8,3.79671]
[1727242261198,0.79809624,2634.1,2633.6,4.6211]
[1727242261500,0.79809624,2634.1,2633.8,3.79666]
[1727242261720,0.79809624,2634.1,2633.8,7.59336]
[1727242261925,0.79809624,2634.1,2633.9,0.759336]
[1727242262097,0.83605184,2634.2,2634.0,3.7965]
[1727242263002,0.83605184,2634.2,2634.0,7.59293]
[1727242263225,0.83605184,2634.2,2634.0,3.79643]
[1727242263530,0.83605184,2634.2,2634.1,0.5379866]
[1727242264098,0.83605184,2634.2,2634.1,4.3343466]
[1727242264328,0.0379556,2634.2,2634.1,4.8843466]
[1727242265343,0.0379556,2634.2,2634.1,7.03637332]
[1727242267211,0.0379556,2634.2,2634.1,6.96045845]
[1727242268451,0.0379556,2634.2,2634.1,7.39049765]
[1727242268629,0.0379556,2634.2,2634.1,7.46640742]
[1727242269212,0.0379556,2634.2,2634.1,7.03636822]
[1727242269539,0.0379556,2634.2,2634.1,7.46642684]
[1727242270434,0.0379556,2634.2,2634.1,7.03636822]
[1727242271003,0.0379556,2634.2,2634.1,5.6603466]
[1727242271251,0.0379556,2634.2,2634.1,1.0879866]
[1727242271838,0.0379556,2634.2,2634.1,0.5379866]
[1727242274508,0.0379556,2634.2,2634.1,4.3343466]
[1727242274703,0.0379556,2634.2,2634.1,0.5379866]
[1727242275907,0.0379556,2634.2,2634.1,4.8843466]
[1727242276107,0.0379556,2634.2,2634.1,4.96025966]
[1727242277905,0.0379556,2634.2,2634.1,6.26037151]
[1727242278124,0.0379556,2634.2,2634.1,7.03637151]
[1727242280549,0.0379556,2634.2,2634.1,6.96045845]
[1727242280850,0.0379556,2634.2,2634.1,7.39050735]
[1727242281004,0.0379556,2634.2,2634.1,7.82060732]
[1727242281955,0.0379556,2634.2,2634.1,6.52049547]
[1727242282246,0.0379556,2634.2,2634.1,5.6603466]
[1727242282550,0.0379556,2634.2,2634.1,6.09051383]
[1727242283127,0.0379556,2634.2,2634.1,6.09050628]
[1727242283547,0.0379556,2634.2,2634.1,5.6603466]
[1727242283746,0.0379556,2634.2,2634.1,7.03637211]
[1727242284461,0.0379556,2634.2,2634.1,7.46655531]
[1727242285723,0.0379556,2634.2,2634.1,7.03637211]
[1727242286463,0.0379556,2634.2,2634.1,7.46656811]
[1727242288151,0.0379556,2634.2,2634.1,7.39065445]
[1727242288466,0.0379556,2634.2,2634.1,6.96045845]
[1727242288621,0.0379556,2634.2,2634.1,7.39067069]
[1727242288823,0.0379556,2634.2,2634.1,6.09055884]
[1727242289021,0.0379556,2634.2,2634.1,5.31455884]
[1727242289277,0.0379556,2634.2,2634.1,4.76455884]
[1727242290331,0.0379556,2634.2,2634.1,4.84047293]
[1727242290534,0.0379556,2634.2,2634.1,5.39047293]
[1727242294865,0.0379556,2634.2,2634.1,0.96819884]
[1727242295038,0.8424556,2634.2,2634.1,0.43021224]
[1727242295245,4.6386656,2634.2,2634.1,0.43021224]
[1727242295767,4.6386856,2634.2,2633.8,0.43061601]
[1727242295941,4.6386856,2634.2,2633.7,6.8727547]
[1727242296142,0.8424556,2634.2,2633.8,0.43071964]
[1727242296343,1.64055184,2634.2,2633.9,0.43082271]
[1727242296667,5.43679184,2634.2,2633.7,4.99381466]
[1727242296842,4.6386956,2634.2,2633.8,1.30989867]
[1727242297043,4.6386956,2634.2,2633.9,0.4308192]
[1727242297230,4.6386956,2634.2,2633.8,0.87907947]
[1727242297433,1.64055184,2634.2,2633.9,0.43091877]
[1727242297633,1.64055184,2634.2,2633.9,3.79663]
[1727242297833,0.8424556,2634.2,2633.8,3.87263573]
[1727242298083,0.8424556,2634.2,2633.9,0.43092]
[1727242298372,0.8424556,2634.2,2633.8,4.76957949]
[1727242298577,1.64055184,2634.2,2633.8,4.76957949]
[1727242298731,1.64055184,2634.2,2633.8,8.56629949]
[1727242298936,1.64055184,2634.2,2633.8,4.69365376]
[1727242299170,1.64055184,2634.2,2634.0,0.43101463]
[1727242299868,1.64055184,2634.2,2634.1,0.43109553]
[1727242300865,1.64055184,2634.2,2634.0,3.7965]
[1727242301052,0.0379556,2634.2,2634.1,6.75129934]
[1727242301377,0.0379556,2634.2,2634.1,5.37526545]
[1727242302388,0.0379556,2634.2,2634.1,1.57890545]
[1727242303085,0.0379556,2634.2,2634.1,0.43111169]
[1727242303571,0.0379556,2634.2,2634.1,5.03287169]
[1727242303572,0.83605184,2634.2,2634.1,5.03287169]
[1727242303787,0.0379556,2634.2,2634.1,5.10879124]
[1727242303933,0.0379556,2634.2,2634.1,6.12932155]
[1727242304944,0.0379556,2634.2,2634.1,2.33296155]
[1727242305482,0.0379556,2634.2,2634.1,6.12932155]
[1727242305695,0.0379556,2634.2,2634.1,4.89280986]
[1727242306189,0.0379556,2634.2,2634.1,5.32432871]
[1727242306395,0.0379556,2634.2,2634.1,1.52796871]
[1727242306551,0.0379556,2634.2,2634.1,0.43151885]
[1727242306991,0.83605184,2634.2,2634.1,0.43151885]
[1727242307293,0.0379556,2634.2,2634.1,0.43151885]
[1727242307450,0.83472995,2634.2,2634.1,0.43151885]
[1727242308283,0.0379556,2634.2,2634.1,0.43151885]
[1727242308868,0.0379556,2634.2,2634.0,3.7965]
[1727242309186,0.79671663,2634.1,2634.0,4.3465]
[1727242309391,0.79671663,2634.1,2634.0,1.37191205]
[1727242309554,0.79671663,2634.1,2634.0,0.82191205]
[1727242309756,0.79671663,2634.1,2633.9,4.34662]
[1727242310389,0.79671663,2634.1,2633.9,0.55]
[1727242311291,0.79671663,2634.1,2634.0,0.43172842]
[1727242311498,1.60931663,2634.1,2634.0,0.43172842]
[1727242312056,0.79671663,2634.1,2634.0,0.43172842]
[1727242312255,0.79671663,2634.1,2634.0,4.27434384]
[1727242312501,0.83467223,2634.2,2634.0,4.27434384]
[1727242312670,0.79671663,2634.1,2634.0,4.27434384]
[1727242312867,0.83467223,2634.2,2634.0,4.27434384]
[1727242313087,0.79671663,2634.1,2634.0,0.47784384]
[1727242313271,0.83467223,2634.2,2633.9,6.46628185]
[1727242313477,0.83467223,2634.2,2633.9,6.54220381]
[1727242313798,0.79671663,2634.1,2633.9,4.42249196]
[1727242316204,0.0379556,2634.2,2633.9,4.42249196]
[1727242316205,0.83467223,2634.2,2633.9,4.42249196]
[1727242316371,0.79671663,2634.1,2633.9,5.75638334]
[1727242318276,0.83467223,2634.2,2634.0,3.7965]
[1727242318762,0.83467223,2634.2,2633.9,3.25992519]
[1727242318961,0.79671663,2634.1,2633.9,7.05646519]
[1727242319204,0.79671663,2634.1,2634.0,1.08531752]
[1727242320398,0.79671663,2634.1,2633.9,5.75635396]
[1727242321173,0.79671663,2634.1,2633.9,1.95981396]
[1727242321400,0.79671663,2634.1,2633.9,0.55]
[1727242321587,1.60931663,2634.1,2633.9,0.55]
[1727242322479,1.60931663,2634.1,2633.9,4.34664]
[1727242323287,1.60931663,2634.1,2633.8,4.34678]
[1727242323610,0.79671663,2634.0,2633.9,0.8634718]
[1727242323813,1.60931663,2634.1,2633.9,4.6601218]
[1727242324108,1.60931663,2634.1,2633.9,3.79665]
[1727242324412,1.60931663,2634.1,2633.8,4.3467]
[1727242325485,1.60931663,2634.1,2633.7,3.79684]
[1727242325710,5.69182566,2634.1,2633.4,15.80728439]
[1727242325875,0.7621,2634.0,2633.4,8.41728439]
[1727242326072,0.7621,2634.0,2633.4,4.59428439]
[1727242326269,3.79665,2633.9,2633.4,4.59428439]
[1727242326474,4.55897,2633.8,2633.4,0.79702439]
[1727242326710,3.79702,2633.7,2633.2,4.62057]
[1727242327008,3.79702,2633.7,2633.0,12.48801185]
[1727242327009,0.7621,2633.5,2633.0,3.79787]
[1727242327411,0.7621,2633.5,2633.1,3.79778]
[1727242327717,0.7621,2633.5,2633.2,3.79764]
[1727242327917,0.7621,2633.5,2633.1,3.8736548]
[1727242328075,0.7621,2633.5,2633.1,4.85313246]
[1727242330613,0.7621,2633.5,2633.1,1.05542246]
[1727242330815,0.7621,2633.5,2633.1,0.0759448]
[1727242330979,0.7621,2633.5,2633.1,3.8737348]
[1727242331698,0.7621,2633.5,2633.1,3.8736648]
[1727242332098,0.7621,2633.5,2633.1,3.8736548]
[1727242337399,0.7621,2633.5,2633.1,3.8736448]
[1727242338007,4.55933,2633.5,2633.0,0.55]
[1727242338210,0.7621,2633.3,2632.9,3.79804]
[1727242338431,0.7621,2633.3,2633.1,3.79776]
[1727242338690,0.7669,2633.5,2633.1,7.59546]
[1727242338896,0.7669,2633.5,2633.1,7.59542]
[1727242339114,0.7669,2633.5,2633.1,8.36255691]
[1727242339365,0.7669,2633.5,2633.1,4.56483691]
[1727242339519,0.7669,2633.5,2633.1,4.64078382]
[1727242341782,0.7669,2633.5,2633.1,4.64077382]
[1727242342215,0.7669,2633.5,2633.3,3.7975]
[1727242342420,0.7669,2633.5,2633.3,0.89882738]
[1727242343302,0.7669,2633.5,2633.2,4.34764]
[1727242344035,0.7669,2633.5,2633.2,0.55]
[1727242345937,0.7669,2633.5,2633.1,3.79769]
[1727242346864,4.56424,2633.5,2633.0,0.55]
[1727242347021,3.79737,2633.4,2633.0,0.55]
[1727242347226,4.56424,2633.5,2633.0,4.865022]
[1727242349335,4.56424,2633.5,2633.1,3.79778]
[1727242350112,4.56424,2633.5,2633.1,5.09578827]
[1727242351554,0.7669,2633.4,2632.7,7.39]
[1727242351860,0.7669,2633.3,2632.7,7.39]
[1727242352151,0.7669,2633.3,2632.6,3.79849]
[1727242352655,3.79775,2633.2,2632.7,3.79837]
[1727242353352,3.79775,2633.2,2632.7,4.634826]
[1727242353644,4.5636,2633.1,2632.7,0.836456]
[1727242353852,0.7658,2633.0,2632.6,3.0]
[1727242356824,4.56378,2633.0,2632.6,3.0]
[1727242357213,4.56378,2633.0,2632.5,3.79865]
[1727242357214,3.79824,2632.8,2632.4,0.68896843]
[1727242357632,3.79824,2632.8,2632.3,3.0]
[1727242357852,0.7658,2632.7,2632.3,3.0]
[1727242358267,0.7658,2632.7,2632.3,6.79895]
[1727242358473,0.7658,2632.7,2632.3,8.00506684]
[1727242359744,0.7658,2632.7,2632.3,5.00506684]
[1727242363686,0.7658,2632.7,2632.3,1.20611684]
[1727242363838,0.7658,2632.7,2632.3,0.55]
[1727242364244,0.7658,2632.6,2632.1,3.0]
[1727242364479,0.7658,2632.6,2632.1,6.79916]
[1727242364850,4.56435,2632.6,2632.1,6.79916]
[1727242365168,4.56435,2632.6,2632.1,8.80524183]
[1727242365966,0.7658,2632.6,2632.2,3.79906]
[1727242368648,0.7658,2632.6,2632.2,3.79902]
[1727242370263,0.7658,2632.6,2632.4,3.7988]
[1727242372071,0.7658,2632.6,2632.3,3.79894]
[1727242374391,0.7658,2632.6,2632.3,4.98853683]
[1727242375389,0.7995,2632.8,2632.4,4.22937859]
[1727242375557,0.7995,2632.8,2632.4,3.79873]
[1727242376263,0.7995,2632.6,2632.2,4.34901]
[1727242378767,0.7995,2632.6,2632.2,8.14803]
[1727242378973,0.7995,2632.6,2632.2,4.34901]
[1727242380766,0.7995,2632.6,2632.2,0.55]
[1727242380969,0.7995,2632.3,2632.0,3.0]
[1727242381502,0.7995,2632.3,2632.0,3.79938]
[1727242381994,0.7995,2632.1,2631.4,3.80016]
[1727242382199,0.7995,2631.8,2631.2,3.80045]
[1727242382423,0.7995,2631.8,2631.4,3.80024]
[1727242384077,0.7995,2631.8,2631.4,3.80018]
[1727242384428,0.7995,2631.8,2631.4,4.180198]
[1727242386490,0.7995,2631.8,2631.4,4.180178]
[1727242387806,0.7995,2631.8,2631.4,7.980358]
[1727242388395,0.7995,2631.8,2631.5,3.8001]
[1727242391581,0.7995,2631.8,2631.4,3.80018]
[1727242391906,0.7995,2631.8,2631.4,4.180198]
[1727242393392,0.7995,2631.8,2631.5,3.80007]
[1727242394232,0.7995,2631.8,2631.4,4.180198]
[1727242394544,0.7995,2631.8,2631.6,3.79987]
[1727242399520,0.7995,2631.8,2631.6,7.59976]
[1727242399717,0.7995,2631.8,2631.6,8.4527378]
[1727242399947,0.7995,2631.8,2631.6,4.6528478]
[1727242400460,0.7995,2631.8,2631.6,0.8529778]
[1727242400764,0.7995,2631.8,2631.5,4.3501]
[1727242401324,0.7995,2631.8,2631.5,0.55]
[1727242401525,0.7995,2631.8,2631.6,3.79996]
[1727242402477,0.7995,2631.8,2631.5,0.55]
[1727242402760,0.7995,2631.8,2631.5,4.35002]
[1727242403666,0.7995,2631.8,2631.4,3.80012]
[1727242404224,3.79985,2631.7,2631.2,3.8005]
[1727242404422,0.8473991,2631.8,2631.3,3.80039]
[1727242404423,0.8029,2631.6,2631.3,3.80039]
[1727242406552,0.8029,2631.6,2631.4,3.80023]
[1727242406942,0.8029,2631.6,2631.3,3.80039]
[1727242407441,0.8029,2631.6,2631.3,7.60072]
[1727242407648,0.8029,2631.6,2631.3,8.57245334]
[1727242408771,0.8029,2631.6,2631.3,4.77206334]
[1727242409140,0.8029,2631.8,2631.5,3.80011]
[1727242409346,0.8029,2631.8,2631.6,3.79996]
[1727242413568,0.8029,2631.8,2631.6,3.79989]
[1727242417386,0.8029,2631.8,2631.5,3.80011]
[1727242417538,0.8029,2631.8,2631.5,7.60013]
[1727242418076,0.8029,2631.8,2631.6,3.79995]
[1727242419262,0.8029,2631.8,2631.5,3.80002]
[1727242419444,0.8029,2631.8,2631.5,7.60005]
[1727242419637,0.8029,2631.8,2631.5,8.66888967]
[1727242421788,0.8029,2631.8,2631.6,3.79992]
[1727242421988,1.55090113,2632.0,2631.8,3.79968]
[1727242422283,0.7564,2632.0,2631.8,3.79968]
[1727242424558,1.55090113,2632.0,2631.8,3.79968]
[1727242424886,0.7564,2632.0,2631.8,3.79968]
[1727242425381,1.55090113,2632.0,2631.8,3.79968]
[1727242426171,1.55090113,2632.0,2631.9,0.69140858]
[1727242427483,0.7564,2632.0,2631.9,0.69140858]
[1727242427686,1.55090113,2632.0,2631.9,0.69140858]
[1727242428059,0.79450113,2632.0,2631.9,0.69140858]
[1727242431169,0.8308,2631.9,2631.4,6.80015]
[1727242431490,0.79523805,2631.7,2631.5,4.49157011]
[1727242432205,0.79523805,2631.7,2631.6,0.69157011]
[1727242435166,0.79523805,2631.7,2631.5,3.8]
[1727242435366,0.79523805,2631.7,2631.5,5.16681713]
[1727242435581,0.79523805,2631.7,2631.6,0.69156564]
[1727242442363,0.79523805,2631.7,2631.5,5.16681713]
[1727242444669,0.79523805,2631.7,2631.5,1.36681713]
[1727242445065,0.79523805,2631.7,2631.5,5.16691713]
[1727242445695,0.79523805,2631.7,2631.5,1.36681713]
[1727242447275,0.79523805,2631.7,2631.6,0.81670671]
[1727242447474,0.79523805,2631.9,2631.7,3.79982]
[1727242447684,0.79523805,2631.9,2631.7,1.29981337]
[1727242447886,0.79523805,2631.9,2631.6,5.16666671]
[1727242448497,0.79523805,2631.9,2631.6,8.96654671]
[1727242448788,0.79523805,2631.9,2631.7,1.10252601]
[1727242451225,0.79523805,2631.9,2631.6,4.34988]
[1727242452680,0.79523805,2631.9,2631.6,8.14977]
[1727242452877,0.79523805,2631.9,2631.6,4.34988]
[1727242453288,4.99210708,2632.1,2631.6,4.34988]
[1727242453289,0.79523805,2632.0,2631.6,4.34988]
[1727242453625,0.79523805,2631.9,2631.6,4.34988]
[1727242453828,0.79523805,2631.9,2631.7,0.64085934]
[1727242454682,0.8052,2631.8,2631.5,3.0]
[1727242454917,0.79523805,2631.7,2631.3,0.55]
[1727242455088,0.79523805,2631.7,2631.4,3.0]
[1727242458798,0.7687,2631.5,2631.2,1.17662455]
[1727242459129,4.67109902,2631.4,2631.0,0.0379556]
[1727242459429,0.79523805,2631.3,2631.0,0.0379556]
[1727242459738,3.80033,2631.4,2631.0,0.0379556]
[1727242459739,4.59556805,2631.4,2631.0,0.0379556]
[1727242460299,1.56393805,2631.3,2631.0,0.0379556]
[1727242460504,0.7687,2631.3,2631.0,0.0379556]
[1727242462102,4.56912,2631.3,2631.0,0.0379556]
[1727242462729,0.7687,2631.3,2631.0,0.0379556]
[1727242466390,0.7687,2631.3,2631.0,0.8518255]
[1727242474069,0.79523805,2631.5,2631.2,1.29981337]
[1727242474405,0.79523805,2631.7,2631.4,1.29981337]
[1727242474698,0.79523805,2631.8,2631.4,1.29981337]
[1727242474910,0.79523805,2631.8,2631.4,2.19745376]
[1727242475203,0.79523805,2631.8,2631.4,5.99770376]
[1727242475499,0.79523805,2631.8,2631.4,0.89764039]
[1727242475704,0.79523805,2631.8,2631.3,3.80028]
[1727242476467,4.59491805,2631.8,2631.3,3.80028]
[1727242477705,0.79523805,2631.7,2631.3,3.80028]
[1727242478092,4.59491805,2631.8,2631.3,3.80028]
[1727242478295,0.79523805,2631.7,2631.3,3.80028]
[1727242478469,0.79523805,2631.7,2631.3,4.76716034]
[1727242479205,4.59491805,2631.8,2631.3,4.76716034]
[1727242479411,0.79523805,2631.7,2631.3,4.76716034]
[1727242479912,4.59491805,2631.8,2631.3,4.76716034]
[1727242480480,0.79523805,2631.7,2631.3,4.76716034]
[1727242480705,0.79523805,2631.7,2631.4,0.60669737]
[1727242480904,0.79523805,2631.7,2631.3,4.76716034]
[1727242481873,4.59491805,2631.8,2631.3,4.76716034]
[1727242482076,0.79523805,2631.7,2631.3,4.76716034]
[1727242482289,4.59491805,2631.8,2631.3,4.76716034]
[1727242482490,0.79523805,2631.7,2631.3,4.76716034]
[1727242482806,4.59491805,2631.8,2631.3,4.76716034]
[1727242482980,0.79523805,2631.7,2631.3,3.80028]
[1727242483200,4.59491805,2631.8,2631.3,3.80028]
[1727242484512,0.79523805,2631.7,2631.3,3.80028]
[1727242484913,0.87076902,2631.7,2631.2,3.55]
[1727242485115,4.67066902,2631.7,2631.2,8.37756489]
[1727242485278,4.59513805,2631.7,2631.2,8.37756489]
[1727242486038,0.79523805,2631.7,2631.2,8.37756489]
[1727242486181,4.59514805,2631.7,2631.2,8.37756489]
[1727242487492,0.7513,2631.6,2631.2,8.37756489]
[1727242491152,4.55127,2631.6,2631.2,8.37756489]
[1727242494650,4.55127,2631.6,2631.2,1.02703489]
[1727242494651,8.35134,2631.6,2631.2,1.02703489]
[1727242494850,4.55127,2631.6,2631.1,3.7681]
[1727242495151,4.55127,2631.6,2631.1,7.56875]
[1727242495875,4.55127,2631.6,2631.2,0.69095725]
[1727242496078,4.55127,2631.6,2631.3,0.69095725]
[1727242496482,5.34650805,2631.6,2631.2,4.39009808]
[1727242496689,5.34650805,2631.6,2631.4,0.69100761]
[1727242496896,5.34650805,2631.6,2631.2,3.0]
[1727242497363,5.34650805,2631.6,2631.3,1.1229152]
[1727242497691,5.34650805,2631.6,2631.4,1.55480561]
[1727242497893,5.34650805,2631.6,2631.5,1.1229152]
[1727242498968,5.74412708,2631.6,2631.5,0.43189046]
[1727242499167,4.55127,2631.6,2631.5,1.12309065]
[1727242499691,4.55127,2631.6,2631.4,0.43189041]
[1727242499904,1.19285708,2631.7,2631.4,2.49120378]
[1727242499905,0.79485327,2631.5,2631.4,2.49120378]
[1727242500081,1.58900227,2631.8,2631.5,0.69130941]
[1727242500082,0.79485327,2631.6,2631.5,0.69130941]
[1727242500402,0.79485327,2631.7,2631.4,6.84057416]
[1727242500562,0.79485327,2631.6,2631.4,6.84057416]
[1727242500767,0.79485327,2631.7,2631.4,6.84057416]
[1727242501174,0.79485327,2631.7,2631.4,1.19139041]
[1727242501372,0.79485327,2631.6,2631.4,1.19139041]
[1727242502181,0.79485327,2631.6,2631.4,0.43189041]
[1727242502584,1.62775327,2631.6,2631.4,0.43189041]
[1727242503211,5.42779327,2631.6,2631.4,0.43189041]
[1727242503398,4.46972813,2631.5,2631.4,0.43189041]
[1727242503563,5.66258521,2631.5,2631.4,0.43189041]
[1727242503765,1.4647475,2631.5,2631.4,0.43189041]
[1727242504409,0.79512937,2631.5,2631.4,0.43189041]
[1727242505061,0.79512937,2631.5,2631.1,4.18069576]
[1727242505797,0.79512937,2631.5,2631.1,3.80067]
[1727242506107,4.59525937,2631.5,2631.1,4.18085146]
[1727242506268,0.79512937,2631.4,2631.1,4.18085146]
[1727242506600,0.79512937,2631.4,2631.0,1.17764174]
[1727242506770,0.79512937,2631.3,2631.1,0.86450544]
[1727242506982,0.79512937,2631.3,2631.2,0.86450544]
[1727242508211,0.79512937,2631.4,2631.2,0.86450544]
[1727242508502,4.99299708,2631.5,2631.3,0.86450544]
[1727242508739,6.31330158,2631.5,2631.3,0.86450544]
[1727242508891,3.80025,2631.4,2631.3,0.86450544]
[1727242509092,3.80025,2631.4,2631.0,4.5982556]
[1727242509287,0.79541668,2631.3,2631.1,0.86452507]
[1727242509494,0.79541668,2631.3,2631.2,0.86452507]
[1727242515313,0.79541668,2631.3,2631.0,0.7974556]
[1727242515514,0.79541668,2631.3,2631.0,1.17770264]
[1727242516740,0.79541668,2631.3,2631.2,0.86459358]
[1727242518236,0.79541668,2631.4,2631.2,0.86459358]
[1727242518509,0.79541668,2631.4,2631.3,6.45081337]
[1727242518734,1.58900227,2631.7,2631.3,6.45081337]
[1727242518735,0.79541668,2631.7,2631.5,1.3506]
[1727242518907,1.19285708,2631.9,2631.8,0.8006]
[1727242518908,0.79541668,2631.9,2631.8,0.8006]
[1727242519107,1.19285708,2632.0,2631.8,0.8006]
[1727242519108,0.79541668,2632.0,2631.8,0.8006]
[1727242521112,1.99325708,2631.9,2631.5,4.35002]
[1727242521404,0.79528022,2631.8,2631.5,4.35002]
[1727242521817,0.79528022,2631.8,2631.4,3.55]
[1727242522048,0.79528022,2631.8,2631.4,3.0]
[1727242523253,0.79528022,2631.8,2631.5,3.8006]
[1727242523555,0.79528022,2631.9,2631.7,3.79982]
[1727242525361,0.79528022,2631.8,2631.7,3.79982]
[1727242525572,0.79528022,2631.9,2631.7,3.79982]
[1727242525751,0.79528022,2631.8,2631.7,3.79982]
[1727242525928,0.79528022,2631.9,2631.7,3.79982]
[1727242526263,0.79528022,2631.9,2631.7,4.994859]
[1727242527165,0.79528022,2631.9,2631.7,1.195039]
[1727242527326,0.79528022,2631.9,2631.6,4.34992]
[1727242528075,0.8004,2631.8,2631.6,4.34992]
[1727242528272,8.79269708,2631.7,2631.1,11.99121]
[1727242528560,0.79465732,2631.6,2631.1,4.60121]
[1727242529075,0.79465732,2631.6,2631.1,8.40182]
[1727242529230,0.79465732,2631.6,2631.1,4.60121]
[1727242529598,0.79465732,2631.6,2631.2,3.55]
[1727242530428,0.79465732,2631.6,2631.2,0.55]
[1727242530669,0.79465732,2631.5,2631.2,0.55]
[1727242530838,0.79465732,2631.6,2631.2,0.55]
[1727242531036,0.8004,2631.4,2631.2,0.55]
[1727242531472,0.8004,2631.4,2631.0,0.0379556]
[1727242531473,5.39532732,2631.4,2631.0,0.0379556]
[1727242533680,0.79465732,2631.3,2631.0,0.0379556]
[1727242534051,5.39532732,2631.4,2631.0,0.0379556]
[1727242534496,6.72303132,2631.4,2631.0,0.0379556]
[1727242536281,5.39532732,2631.4,2631.0,0.0379556]
[1727242542084,1.59505732,2631.4,2631.0,0.0379556]
[1727242543494,5.39531732,2631.4,2631.0,0.0379556]
[1727242549395,1.59505732,2631.4,2631.1,0.55]
[1727242549566,4.59480732,2631.5,2631.1,0.55]
[1727242549773,4.59480732,2631.5,2631.1,4.35068]
[1727242550791,1.98925708,2631.6,2631.1,4.35068]
[1727242550792,0.79465732,2631.6,2631.3,0.8167]
[1727242550957,0.79465732,2631.5,2631.3,0.8167]
[1727242551302,0.79465732,2631.6,2631.3,0.8167]
[1727242552404,4.59462732,2631.6,2631.2,3.80053]
[1727242552585,1.75339676,2631.5,2631.1,1.3667]
[1727242552913,4.59668,2631.4,2631.1,0.55]
[1727242553072,5.39133732,2631.4,2631.1,0.55]
[1727242553456,1.59105732,2631.4,2631.0,0.0379556]
[1727242554069,5.39137732,2631.4,2631.0,0.0379556]
[1727242554293,3.80042,2631.3,2631.0,0.0379556]
[1727242554499,6.59625108,2631.4,2631.0,0.0379556]
[1727242554707,10.39664108,2631.4,2631.0,0.0379556]
[1727242555076,0.79465732,2631.3,2631.0,0.0379556]
[1727242555492,6.59625108,2631.4,2631.0,0.0379556]
[1727242556167,5.39137732,2631.4,2631.0,0.0379556]
[1727242557511,0.79465732,2631.3,2631.0,0.0379556]
[1727242559177,5.39137732,2631.4,2631.0,0.0379556]
[1727242560508,5.39137732,2631.4,2631.1,0.68418092]
[1727242560677,5.39137732,2631.4,2631.0,0.0379556]
[1727242560877,5.39137732,2631.4,2631.1,1.11176984]
[1727242561078,5.39137732,2631.4,2631.2,0.42760379]
[1727242561315,5.39137732,2631.4,2631.3,0.42760379]
[1727242561514,6.59625808,2631.4,2631.3,0.42760379]
[1727242563014,2.79593808,2631.4,2631.3,0.42760379]
[1727242563382,0.79465732,2631.5,2631.3,0.42760379]
[1727242563605,0.79465732,2631.6,2631.5,5.10021]
[1727242563806,0.79465732,2631.9,2631.6,3.79995]
[1727242563977,0.79465732,2631.9,2631.5,3.71156249]
[1727242563978,4.59420732,2631.9,2631.5,3.71156249]
[1727242564177,0.79465732,2631.9,2631.7,0.42752164]
[1727242564377,5.46934342,2631.9,2631.7,0.42752164]
[1727242565323,0.79465732,2631.8,2631.5,0.7501]
[1727242565525,0.79465732,2631.8,2631.6,0.42757349]
[1727242565724,0.79465732,2631.8,2631.7,0.42757349]
[1727242566521,0.79460644,2631.8,2631.7,0.42757349]
[1727242567585,0.79460644,2631.8,2631.7,0.42768504]
[1727242567986,0.79460644,2631.8,2631.5,0.7501]
[1727242568422,0.79460644,2631.8,2631.7,0.42767471]
[1727242569721,0.79460644,2631.8,2631.7,1.11199244]
[1727242570092,0.79460644,2631.9,2631.7,1.11199244]
[1727242570322,0.79460644,2631.9,2631.6,3.79987]
[1727242570323,0.79460644,2631.9,2631.8,0.42767471]
[1727242570824,0.79460644,2631.9,2631.6,3.79986]
[1727242571134,0.79460644,2631.9,2631.7,1.11202018]
[1727242571313,0.79460644,2631.9,2631.8,0.42770001]
[1727242574090,0.79460644,2631.9,2631.6,3.79986]
[1727242574545,0.79460644,2631.9,2631.8,0.42770742]
[1727242576939,0.79460644,2632.0,2631.8,0.42770742]
[1727242577100,0.79460644,2632.0,2631.9,0.42770742]
[1727242577449,0.79460644,2632.0,2631.9,0.42758983]
[1727242577645,0.79460644,2632.0,2631.9,4.22711983]
[1727242577929,1.19285708,2632.1,2631.9,4.22711983]
[1727242577930,0.79460644,2632.1,2631.9,4.22711983]
[1727242578295,0.79460644,2632.1,2632.0,0.42753604]
[1727242578928,3.35790142,2632.1,2631.6,0.55]
[1727242579094,0.79496294,2632.0,2631.8,0.55]
[1727242579556,0.79496294,2632.0,2631.9,0.42748974]
[1727242580397,1.58466294,2632.1,2631.9,0.42748974]
[1727242580598,1.58466294,2632.1,2631.7,4.34982]
[1727242580999,1.58466294,2632.1,2631.8,0.42742139]
[1727242581638,1.58466294,2632.1,2631.9,0.42742139]
[1727242581929,1.58466294,2632.1,2631.7,4.34974]
[1727242582138,1.58466294,2632.1,2631.8,4.22703953]
[1727242582336,1.58466294,2632.1,2631.9,0.42739953]
[1727242582496,1.58466294,2632.1,2631.8,3.79964]
[1727242585456,0.79496294,2632.1,2631.8,3.79964]
[1727242585655,0.79496294,2632.1,2631.9,0.7512]
[1727242587096,0.79496294,2632.2,2631.9,0.7512]
[1727242588014,0.79496294,2632.1,2631.9,0.7512]
[1727242589283,0.79496294,2632.2,2631.9,0.7512]
[1727242589674,0.79496294,2632.2,2631.8,3.79964]
[1727242591387,0.79496294,2632.2,2631.9,4.34944]
[1727242591610,0.79496294,2632.3,2632.1,1.84981337]
[1727242591914,1.19285708,2632.4,2632.1,1.84981337]
[1727242591915,0.79496294,2632.4,2632.3,4.55015]
[1727242592113,1.19285708,2632.6,2632.3,4.55015]
[1727242592114,0.79496294,2632.5,2632.3,4.55015]
[1727242592314,0.79496294,2632.6,2632.3,8.34903]
[1727242592516,0.79496294,2632.6,2632.3,9.64876337]
[1727242592726,0.79496294,2632.6,2632.3,5.84988337]
[1727242592923,4.99116708,2632.8,2632.3,5.84988337]
[1727242592924,0.79496294,2632.7,2632.4,3.79871]
[1727242593132,0.79496294,2632.7,2632.5,4.34857]
[1727242593332,0.79496294,2632.7,2632.5,5.64838337]
[1727242593497,0.79496294,2632.8,2632.6,0.7512]
[1727242594191,0.79496294,2632.9,2632.6,4.54971]
[1727242595720,0.79496294,2632.9,2632.6,0.7512]
[1727242596253,0.79496294,2632.9,2632.6,4.54961]
[1727242596452,1.58466294,2633.0,2632.6,4.54961]
[1727242597151,5.38263294,2633.0,2632.6,0.7512]
[1727242597542,1.58466294,2633.0,2632.6,4.5497]
[1727242598036,0.79496294,2633.0,2632.6,4.5497]
[1727242598235,0.79496294,2633.1,2632.6,4.5497]